[Event "Polish Youth G18 Championship 2023"]
[Site "Jastrzebia Gora"]
[Date "2023.03.13"]
[Round "3.6"]
[White "Krzyzosiak, Marta"]
[Black "Barwinska, Ewa"]
[Result "0-1"]
[ECO "A06"]
[WhiteElo "1778"]
[BlackElo "1963"]
[Annotator "TA"]
[PlyCount "80"]
[EventDate "2023.03.11"]
[EventType "swiss"]
[EventCountry "POL"]
[SourceTitle "playchess.com"]
[Source "ChessBase"]
[SourceQuality "1"]
[TimeControl "40/5400+30:1800+30"]

{[%evp 11,80,-19,-10,-25,8,-42,-42,-39,-39,-37,-36,-49,-36,-43,-39,-50,-44,-66,-48,-46,-56,-50,-45,-94,-93,-128,-116,-109,-123,-514,-509,-599,-569,-626,-599,-619,-600,-608,-586,-708,-679,-1186,-1164,-1004,-814,-793,-757,-1389,-651,-1739,-863,-2967,-2675,-5473,-1032,-956,-844,-4372,-2115,-29949,-6203,-5406,-5318,-29973,-29976,-29976,-29977,-29977,-29976,-29978,-29978]} 1. Nf3 {[%emt 0:00:03]} d5 {[%emt 0:00:09]} 2. g3 {[%emt 0:00:09]} Nf6 {[%emt 0:00:15]} 3. Bg2 {[%emt 0:00:10]} c5 {[%emt 0:00:42]} 4. d3 {[%emt 0:00:23]} Nc6 {[%emt 0:00:45]} 5. O-O {[%emt 0:00:09]} e5 {[%emt 0:02:37]} 6. e4 {[%emt 0:02:57]} Be7 {[%emt 0:05:47]} 7. Nc3 {[%emt 0:01:06] A08: King's Indian Attack.} Be6 {[%emt 0:07:19]} (7... d4 $5 {[%cal Rd4c3]} 8. Nd5 Nxd5 9. exd5 Qxd5 $11) 8. exd5 {[%emt 0:08:52]} (8. Ng5 $11) 8... Nxd5 $15 {[%emt 0:01:17]} 9. Nxd5 {[%emt 0:02:56] Black is slightly better.} Bxd5 {[%emt 0:00:45]} 10. Re1 {[%emt 0:04:21]} f6 {[%emt 0:02:45] [#]} 11. b3 $146 {[%emt 0:06:03]} ({Predecessor:} 11. Be3 O-O 12. Bd2 Qd7 13. a4 Rad8 14. Bc3 Rfe8 15. Nd2 Bf7 16. a5 Nb4 17. Bxb4 cxb4 {0-1 Murzin,V (2270)-Usmanov,V (2463) Chigorin Memorial 25th 2017 (3)}) 11... O-O {[%emt 0:01:40]} 12. Bb2 {[%emt 0:01:15]} Qd7 {[%emt 0:03:51]} 13. Qd2 {[%emt 0:08:49]} Rac8 {[%emt 0:04:50]} 14. Rad1 {[%emt 0:03:16]} Rc7 {[%emt 0:10:18]} 15. Qe2 {[%emt 0:08:02]} Nd4 {[%emt 0:06:04]} 16. Nxd4 {[%emt 0:06:51]} cxd4 {[%emt 0:00:34]} 17. Bxd5+ {[%emt 0:03:28]} (17. f4 $15 {might be stronger.}) 17... Qxd5 $17 {[%emt 0:00:02]} 18. Qd2 {[%emt 0:03:36]} Rfc8 $36 {[%emt 0:01:51][%mdl 2048] Black is really pushing. Black has more active pieces.} 19. Rc1 {[%emt 0:00:27]} a5 {[%emt 0:06:57] White must now prevent ...Bb4.} 20. c3 {[%emt 0:09:10][%mdl 8192] Dodges Bb4. This costs White the game.} (20. Re2 $17) 20... dxc3 $19 {[%emt 0:02:52][%mdl 64] Deflection} 21. Bxc3 {[%emt 0:00:33]} Ba3 {[%emt 0:01:26]} 22. Bb2 {[%emt 0:06:46] [#]} Bb4 {[%emt 0:01:21]} 23. Qe3 {[%emt 0:06:59]} Bxe1 {[%emt 0:00:17]} 24. Rxe1 {[%emt 0:00:06]} Rc2 {[%emt 0:01:57]} 25. Re2 {[%emt 0:01:15]} b5 {[%emt 0:03:39]} 26. f4 {[%emt 0:02:42]} Rxe2 {[%emt 0:01:07]} 27. Qxe2 {[%emt 0:00:26]} exf4 {[%emt 0:00:23]} 28. gxf4 {[%emt 0:01:50][%mdl 4096] Endgame KQR-KQB} Qc5+ {[%emt 0:01:51]} 29. d4 {[%emt 0:00:19]} Qd5 {[%emt 0:00:57]} (29... Qc2 $142 30. Qxc2 Rxc2) 30. h4 {[%emt 0:03:50]} Kf7 {[%emt 0:02:26]} (30... Qf5 $142 31. Kf1 Qb1+ 32. Qe1 Qd3+ 33. Qe2 Qxe2+ {[%mdl 64] Remove Defender} 34. Kxe2 Rc2+ 35. Kd3 Rxb2) 31. h5 {[%emt 0:02:51]} Re8 {[%emt 0:01:17]} 32. Qg4 {[%emt 0:00:10]} Qe6 {[%emt 0:00:37]} (32... Qe4 $142 33. Qd1 Qxf4) 33. Qxe6+ {[%emt 0:00:50]} Kxe6 {[%emt 0:01:02] KR-KB} 34. a4 {[%emt 0:01:03]} b4 {[%emt 0:00:36]} 35. Kf2 {[%emt 0:00:21]} Rc8 {[%emt 0:00:20]} 36. d5+ {[%emt 0:00:15]} Kxd5 {[%emt 0:00:58] ( -> ...Rc2+)} 37. h6 {[%emt 0:00:17]} gxh6 {[%emt 0:01:11] Black mates.} 38. Bxf6 {[%emt 0:00:04]} Ke4 {[%emt 0:00:54]} 39. Be5 {[%emt 0:00:45]} Rc2+ {[%emt 0:01:15]} 40. Kg3 {[%emt 0:00:00] [#]} Rc3+ $1 {[%emt 0:00:00][%mdl 64] Double Attack.   Weighted Error Value: White=1.52/Black=0.58} 0-1

[Event "Polish Youth G18 Championship 2023"]
[Site "Jastrzebia Gora"]
[Date "2023.03.13"]
[Round "3.7"]
[White "Labedz, Gabriela"]
[Black "Kaznowska, Kinga"]
[Result "1-0"]
[ECO "C22"]
[WhiteElo "1425"]
[BlackElo "1352"]
[Annotator "NA RC COMBH"]
[PlyCount "47"]
[EventDate "2023.03.11"]
[EventType "swiss"]
[EventCountry "POL"]
[SourceTitle "playchess.com"]
[Source "ChessBase"]
[SourceQuality "1"]
[TimeControl "40/5400+30:1800+30"]

1. e4 {[%emt 0:00:02]} e5 {[%emt 0:00:05]} 2. d4 {[%emt 0:00:05]} exd4 {[%emt 0:00:04]} 3. Qxd4 {[%emt 0:00:04]} Nc6 {[%emt 0:00:06]} 4. Qe3 {[%emt 0:00:06]} Nge7 {[%emt 0:00:25]} 5. Nc3 {[%emt 0:01:46]} Ng6 {[%emt 0:00:18]} 6. Bd2 {[%emt 0:03:31]} Bb4 {[%emt 0:00:31]} 7. O-O-O {[%emt 0:02:57]} O-O {[%emt 0:00:08]} 8. f4 {[%emt 0:04:18]} d6 {[%emt 0:01:04]} 9. f5 {[%emt 0:04:19]} Nge5 {[%emt 0:01:23]} 10. Qg3 {[%emt 0:06:50]} Kh8 {[%emt 0:01:56]} 11. Nf3 {[%emt 0:02:34]} h6 {[%emt 0:01:03]} 12. Qh3 {[%emt 0:05:30]} Kg8 {[%emt 0:06:13]} 13. g4 {[%emt 0:07:18]} Nxf3 {[%emt 0:04:53]} 14. Qxf3 {[%emt 0:00:12]} Ne5 {[%emt 0:00:05]} 15. Qg3 {[%emt 0:01:58]} f6 {[%emt 0:09:29]} 16. h4 {[%emt 0:06:03]} Bxc3 {[%emt 0:01:09]} 17. Bxc3 {[%emt 0:00:44]} Re8 {[%emt 0:02:43]} 18. g5 {[%emt 0:03:56]} hxg5 {[%emt 0:09:29]} 19. hxg5 {[%emt 0:00:59]} Kf7 {[%emt 0:00:40]} 20. Rh7 {[%emt 0:06:26]} Bxf5 {[%emt 0:22:43]} 21. exf5 {[%emt 0:01:36]} fxg5 {[%emt 0:01:00]} 22. Bxe5 {[%emt 0:04:05]} Rxe5 {[%emt 0:00:26]} 23. Bc4+ {[%emt 0:00:34]} Kf6 {[%emt 0:01:47]} 24. Be6 {[%emt 0:00:47]} 1-0

[Event "Polish Youth G18 Championship 2023"]
[Site "Jastrzebia Gora"]
[Date "2023.03.13"]
[Round "3.8"]
[White "Bukala, Weronika"]
[Black "Dallemura, Anna"]
[Result "1-0"]
[ECO "C77"]
[WhiteElo "1899"]
[BlackElo "1496"]
[Annotator "NA RC COMBH"]
[PlyCount "65"]
[EventDate "2023.03.11"]
[EventType "swiss"]
[EventCountry "POL"]
[SourceTitle "playchess.com"]
[Source "ChessBase"]
[SourceQuality "1"]
[TimeControl "40/5400+30:1800+30"]

1. e4 {[%emt 0:00:02]} e5 {[%emt 0:00:08]} 2. Nf3 {[%emt 0:00:04]} Nc6 {[%emt 0:00:08]} 3. Bb5 {[%emt 0:00:06]} a6 {[%emt 0:00:08]} 4. Ba4 {[%emt 0:00:04]} Nf6 {[%emt 0:00:23]} 5. d3 {[%emt 0:00:09]} b5 {[%emt 0:00:31]} 6. Bb3 {[%emt 0:00:04]} Be7 {[%emt 0:04:46]} 7. O-O {[%emt 0:00:07]} d6 {[%emt 0:00:09]} 8. c3 {[%emt 0:00:05]} O-O {[%emt 0:00:49]} 9. Nbd2 {[%emt 0:00:23]} h6 {[%emt 0:01:33]} 10. Re1 {[%emt 0:00:09]} Re8 {[%emt 0:05:03]} 11. Nf1 {[%emt 0:00:10]} Bf8 {[%emt 0:02:02]} 12. h3 {[%emt 0:07:42]} Na5 {[%emt 0:07:31]} 13. Bc2 {[%emt 0:00:09]} c5 {[%emt 0:00:19]} 14. Ng3 {[%emt 0:00:29]} Nc6 {[%emt 0:04:50]} 15. d4 {[%emt 0:04:06]} cxd4 {[%emt 0:02:25]} 16. cxd4 {[%emt 0:00:05]} Qc7 {[%emt 0:05:41]} 17. Be3 {[%emt 0:08:33]} Bd7 {[%emt 0:06:48]} 18. Rc1 {[%emt 0:01:17]} Qb7 {[%emt 0:00:20]} 19. d5 {[%emt 0:09:36]} Ne7 {[%emt 0:08:15]} 20. Nd2 {[%emt 0:05:13]} Ng6 {[%emt 0:03:42]} 21. b4 {[%emt 0:00:52]} a5 {[%emt 0:01:24]} 22. bxa5 {[%emt 0:02:32]} Rxa5 {[%emt 0:00:41]} 23. Bb1 {[%emt 0:00:13]} Be7 {[%emt 0:10:31]} 24. Nb3 {[%emt 0:06:21]} Raa8 {[%emt 0:02:03]} 25. Qd2 {[%emt 0:00:56]} Bd8 {[%emt 0:05:06]} 26. Rc3 {[%emt 0:06:16]} Ne7 {[%emt 0:08:30]} 27. Bxh6 {[%emt 0:03:06]} gxh6 {[%emt 0:09:22]} 28. Qxh6 {[%emt 0:00:10]} Ng6 {[%emt 0:06:48]} 29. Nf5 {[%emt 0:00:46]} Bxf5 {[%emt 0:00:30]} 30. exf5 {[%emt 0:00:09]} Qxd5 {[%emt 0:02:34]} 31. fxg6 {[%emt 0:00:46]} fxg6 {[%emt 0:00:59]} 32. Rg3 {[%emt 0:00:31]} Kf7 {[%emt 0:02:00]} 33. Bxg6+ {[%emt 0:00:06]} 1-0

[Event "Polish Youth G18 Championship 2023"]
[Site "Jastrzebia Gora"]
[Date "2023.03.13"]
[Round "3.9"]
[White "Samol, Julia"]
[Black "Nowak, Roksana"]
[Result "0-1"]
[ECO "B90"]
[WhiteElo "1374"]
[BlackElo "1816"]
[Annotator "NA RC COMBH"]
[PlyCount "56"]
[EventDate "2023.03.11"]
[EventType "swiss"]
[EventCountry "POL"]
[SourceTitle "playchess.com"]
[Source "ChessBase"]
[SourceQuality "1"]
[TimeControl "40/5400+30:1800+30"]

1. e4 {[%emt 0:00:05]} c5 {[%emt 0:00:05]} 2. Nf3 {[%emt 0:00:07]} d6 {[%emt 0:00:07]} 3. d4 {[%emt 0:00:05]} cxd4 {[%emt 0:00:07]} 4. Nxd4 {[%emt 0:00:06]} Nf6 {[%emt 0:00:06]} 5. Nc3 {[%emt 0:00:11]} a6 {[%emt 0:00:05]} 6. Be3 {[%emt 0:00:27]} e5 {[%emt 0:00:15]} 7. Nb3 {[%emt 0:00:06]} Be6 {[%emt 0:00:16]} 8. f3 {[%emt 0:00:54]} h5 {[%emt 0:00:31]} 9. Qd2 {[%emt 0:02:13]} Nbd7 {[%emt 0:00:41]} 10. O-O-O {[%emt 0:01:20]} Rc8 {[%emt 0:00:45]} 11. Kb1 {[%emt 0:01:22]} Nb6 {[%emt 0:01:10]} 12. Bxb6 {[%emt 0:13:44]} Qxb6 {[%emt 0:00:07]} 13. Nd5 {[%emt 0:00:55]} Bxd5 {[%emt 0:02:21]} 14. exd5 {[%emt 0:00:13]} Be7 {[%emt 0:05:17]} 15. Be2 {[%emt 0:07:30]} O-O {[%emt 0:02:18]} 16. Qd3 {[%emt 0:12:19]} Qc7 {[%emt 0:04:12]} 17. Rc1 {[%emt 0:04:44]} a5 {[%emt 0:06:54]} 18. g4 {[%emt 0:01:56]} a4 {[%emt 0:02:46]} 19. Nd2 {[%emt 0:01:13]} a3 {[%emt 0:00:26]} 20. Qxa3 {[%emt 0:05:12]} Nxd5 {[%emt 0:00:39]} 21. h4 {[%emt 0:05:33]} Nf4 {[%emt 0:04:19]} 22. Bd3 {[%emt 0:01:49]} d5 {[%emt 0:01:15]} 23. Qb3 {[%emt 0:00:58]} Qa5 {[%emt 0:01:34]} 24. Nf1 {[%emt 0:00:46]} Rc6 {[%emt 0:11:00]} 25. c4 {[%emt 0:08:15]} Rb6 {[%emt 0:04:36]} 26. Qd1 {[%emt 0:01:49]} Ra8 {[%emt 0:02:44]} 27. a4 {[%emt 0:01:39]} Nxd3 {[%emt 0:01:48]} 28. Qxd3 {[%emt 0:00:05]} Qxa4 {[%emt 0:00:08]} 0-1

[Event "Polish Youth G18 Championship 2023"]
[Site "Jastrzebia Gora"]
[Date "2023.03.13"]
[Round "3.10"]
[White "Lukasik, Zuzanna"]
[Black "Szczotka, Matylda"]
[Result "1/2-1/2"]
[ECO "C54"]
[WhiteElo "1781"]
[BlackElo "1451"]
[Annotator "NA RC COMBH"]
[PlyCount "100"]
[EventDate "2023.03.11"]
[EventType "swiss"]
[EventCountry "POL"]
[SourceTitle "playchess.com"]
[Source "ChessBase"]
[SourceQuality "1"]
[TimeControl "40/5400+30:1800+30"]

1. e4 {[%emt 0:00:04]} e5 {[%emt 0:00:05]} 2. Nf3 {[%emt 0:00:44]} Nc6 {[%emt 0:00:04]} 3. Bc4 {[%emt 0:00:18]} Bc5 {[%emt 0:00:05]} 4. c3 {[%emt 0:01:07]} Nf6 {[%emt 0:00:11]} 5. d3 {[%emt 0:00:09]} d6 {[%emt 0:00:24]} 6. a4 {[%emt 0:01:23]} a5 {[%emt 0:01:49]} 7. O-O {[%emt 0:02:14]} O-O {[%emt 0:00:49]} 8. h3 {[%emt 0:03:52]} h6 {[%emt 0:04:15]} 9. Re1 {[%emt 0:04:13]} Re8 {[%emt 0:05:32]} 10. Nbd2 {[%emt 0:05:20]} Bb6 {[%emt 0:02:29]} 11. Nf1 {[%emt 0:09:10]} Ne7 {[%emt 0:10:17]} 12. Qb3 {[%emt 0:07:25]} Rf8 {[%emt 0:03:58]} 13. Qc2 {[%emt 0:01:58]} Ng6 {[%emt 0:03:12]} 14. Ng3 {[%emt 0:07:38]} Nh7 {[%emt 0:07:51]} 15. Be3 {[%emt 0:19:24]} Bxe3 {[%emt 0:02:32]} 16. Rxe3 {[%emt 0:00:31]} Nf4 {[%emt 0:05:17]} 17. d4 {[%emt 0:05:47]} Qf6 {[%emt 0:08:17]} 18. Rd1 {[%emt 0:04:58]} Ng5 {[%emt 0:04:20]} 19. Nxg5 {[%emt 0:07:32]} Qxg5 {[%emt 0:01:00]} 20. Kh2 {[%emt 0:03:16]} Kh8 {[%emt 0:08:17]} 21. Rg1 {[%emt 0:02:25]} Be6 {[%emt 0:05:12]} 22. d5 {[%emt 0:08:09]} Bd7 {[%emt 0:00:44]} 23. b3 {[%emt 0:00:49]} h5 {[%emt 0:05:32]} 24. Ne2 {[%emt 0:01:11]} f5 {[%emt 0:02:44]} 25. Nxf4 {[%emt 0:02:28]} exf4 {[%emt 0:01:18]} 26. Rf3 {[%emt 0:00:48]} fxe4 {[%emt 0:01:14]} 27. Qxe4 {[%emt 0:00:08]} Bg4 {[%emt 0:07:16]} 28. Bd3 {[%emt 0:00:08]} Qh6 {[%emt 0:00:29]} 29. Qe7 {[%emt 0:01:08]} Qf6 {[%emt 0:06:42]} 30. Qxc7 {[%emt 0:00:37]} Bxf3 {[%emt 0:01:13]} 31. gxf3 {[%emt 0:00:11]} Rac8 {[%emt 0:00:31]} 32. Qxb7 {[%emt 0:00:36]} Rxc3 {[%emt 0:01:21]} 33. Be4 {[%emt 0:00:43]} Qd4 {[%emt 0:01:22]} 34. Rg2 {[%emt 0:00:30]} Rcc8 {[%emt 0:00:37]} 35. Qa6 {[%emt 0:00:29]} Qb4 {[%emt 0:00:25]} 36. Qa7 {[%emt 0:00:18]} Qc3 {[%emt 0:00:30]} 37. Rg5 {[%emt 0:00:45]} Qc7 {[%emt 0:00:34]} 38. Rxh5+ {[%emt 0:00:26]} Kg8 {[%emt 0:00:00]} 39. Qd4 {[%emt 0:00:31]} Rf6 {[%emt 0:00:47]} 40. Bh7+ {[%emt 0:00:00]} Kf8 {[%emt 0:00:00]} 41. Kg2 {[%emt 0:05:33]} Qc5 {[%emt 0:09:09]} 42. Qd3 {[%emt 0:01:21]} Qc3 {[%emt 0:05:51]} 43. Qb5 {[%emt 0:04:51]} g6 {[%emt 0:07:01]} 44. Rg5 {[%emt 0:03:47]} Qc2 {[%emt 0:08:18]} 45. h4 {[%emt 0:03:23]} Rc7 {[%emt 0:02:18]} 46. Qb8+ {[%emt 0:01:38]} Rc8 {[%emt 0:01:02]} 47. Qb5 {[%emt 0:00:26]} Rc7 {[%emt 0:00:16]} 48. Qb8+ {[%emt 0:00:27]} Rc8 {[%emt 0:00:03]} 49. Qb5 {[%emt 0:00:58]} Rc7 {[%emt 0:00:05]} 50. Qb8+ {[%emt 0:00:07]} Kg7 1/2-1/2

[Event "Polish Youth G18 Championship 2023"]
[Site "Jastrzebia Gora"]
[Date "2023.03.13"]
[Round "3.11"]
[White "Arciszewska, Zuzanna"]
[Black "Pietrzak, Emilia"]
[Result "1-0"]
[ECO "D58"]
[WhiteElo "1750"]
[BlackElo "1424"]
[Annotator "NA RC COMBH"]
[PlyCount "75"]
[EventDate "2023.03.11"]
[EventType "swiss"]
[EventCountry "POL"]
[SourceTitle "playchess.com"]
[Source "ChessBase"]
[SourceQuality "1"]
[TimeControl "40/5400+30:1800+30"]

1. d4 {[%emt 0:00:03]} d5 {[%emt 0:00:04]} 2. Nf3 {[%emt 0:00:43]} Nf6 {[%emt 0:00:06]} 3. c4 {[%emt 0:01:01]} e6 {[%emt 0:00:19]} 4. Nc3 {[%emt 0:01:30]} Be7 {[%emt 0:00:28]} 5. Bg5 {[%emt 0:01:21]} O-O {[%emt 0:00:25]} 6. e3 {[%emt 0:00:51]} h6 {[%emt 0:00:20]} 7. Bh4 {[%emt 0:01:37]} b6 {[%emt 0:00:22]} 8. Bd3 {[%emt 0:01:54]} Bb7 {[%emt 0:00:37]} 9. Rc1 {[%emt 0:04:59]} c5 {[%emt 0:05:30]} 10. cxd5 {[%emt 0:07:04]} exd5 {[%emt 0:05:57]} 11. O-O {[%emt 0:02:31]} Nbd7 {[%emt 0:05:46]} 12. Qe2 {[%emt 0:10:22]} Ne4 {[%emt 0:04:59]} 13. Bxe7 {[%emt 0:00:54]} Qxe7 {[%emt 0:00:07]} 14. dxc5 {[%emt 0:01:21]} Ndxc5 {[%emt 0:02:25]} 15. Bxe4 {[%emt 0:07:11]} dxe4 {[%emt 0:06:58]} 16. Nd4 {[%emt 0:01:30]} Ba6 {[%emt 0:00:52]} 17. Ncb5 {[%emt 0:03:38]} Qe5 {[%emt 0:11:37]} 18. Rc3 {[%emt 0:05:31]} Rac8 {[%emt 0:06:10]} 19. Ra3 {[%emt 0:04:32]} Qe8 {[%emt 0:10:27]} 20. b4 {[%emt 0:05:41]} Bxb5 {[%emt 0:01:41]} 21. Nxb5 {[%emt 0:00:17]} Nb7 {[%emt 0:01:01]} 22. Rxa7 {[%emt 0:00:50]} Qc6 {[%emt 0:01:12]} 23. Nd4 {[%emt 0:02:26]} Qd5 {[%emt 0:02:00]} 24. Qa6 {[%emt 0:04:24]} Rc7 {[%emt 0:04:35]} 25. Qxb6 {[%emt 0:07:44]} Rfc8 {[%emt 0:00:45]} 26. Qb5 {[%emt 0:01:41]} Rd8 {[%emt 0:02:21]} 27. Qxd5 {[%emt 0:00:43]} Rxd5 {[%emt 0:00:04]} 28. a4 {[%emt 0:00:36]} Rdd7 {[%emt 0:00:28]} 29. a5 {[%emt 0:03:10]} Nd6 {[%emt 0:00:42]} 30. Rxc7 {[%emt 0:00:13]} Rxc7 {[%emt 0:00:04]} 31. b5 {[%emt 0:01:29]} Ra7 {[%emt 0:01:21]} 32. Ra1 {[%emt 0:00:43]} Nc4 {[%emt 0:00:33]} 33. a6 {[%emt 0:00:42]} Kh7 {[%emt 0:00:47]} 34. Nc6 {[%emt 0:02:40]} Ra8 {[%emt 0:03:01]} 35. g3 {[%emt 0:01:08]} Kg6 {[%emt 0:00:29]} 36. a7 {[%emt 0:03:06]} Nd6 {[%emt 0:00:54]} 37. b6 {[%emt 0:00:45]} Kh7 {[%emt 0:00:35]} 38. Rd1 {[%emt 0:00:18]} 1-0

[Event "Polish Youth G18 Championship 2023"]
[Site "Jastrzebia Gora"]
[Date "2023.03.13"]
[Round "3.12"]
[White "Bugaj, Hanna"]
[Black "Bychowska, Marta"]
[Result "1/2-1/2"]
[ECO "D35"]
[WhiteElo "1639"]
[BlackElo "1388"]
[Annotator "NA RC COMBH"]
[PlyCount "83"]
[EventDate "2023.03.11"]
[EventType "swiss"]
[EventCountry "POL"]
[SourceTitle "playchess.com"]
[Source "ChessBase"]
[SourceQuality "1"]
[TimeControl "40/5400+30:1800+30"]

1. d4 {[%emt 0:00:03]} d5 {[%emt 0:00:04]} 2. c4 {[%emt 0:00:06]} e6 {[%emt 0:00:04]} 3. Nc3 {[%emt 0:00:06]} Nf6 {[%emt 0:00:05]} 4. cxd5 {[%emt 0:00:12]} exd5 {[%emt 0:00:07]} 5. Bg5 {[%emt 0:00:08]} Be7 {[%emt 0:00:10]} 6. e3 {[%emt 0:00:12]} h6 {[%emt 0:00:12]} 7. Bf4 {[%emt 0:01:50]} Bf5 {[%emt 0:01:23]} 8. h3 {[%emt 0:11:44]} c6 {[%emt 0:00:50]} 9. Bd3 {[%emt 0:01:34]} Bxd3 {[%emt 0:00:54]} 10. Qxd3 {[%emt 0:00:04]} Bd6 {[%emt 0:01:18]} 11. Bxd6 {[%emt 0:01:37]} Qxd6 {[%emt 0:00:08]} 12. Nf3 {[%emt 0:00:12]} Nbd7 {[%emt 0:00:44]} 13. a3 {[%emt 0:05:54]} Nb6 {[%emt 0:03:36]} 14. Nd2 {[%emt 0:03:43]} O-O {[%emt 0:00:51]} 15. O-O {[%emt 0:00:35]} Rfe8 {[%emt 0:00:30]} 16. b4 {[%emt 0:07:42]} a6 {[%emt 0:04:55]} 17. Rfb1 {[%emt 0:03:29]} Qe6 {[%emt 0:02:36]} 18. a4 {[%emt 0:08:18]} Nc4 {[%emt 0:01:56]} 19. b5 {[%emt 0:09:20]} axb5 {[%emt 0:01:49]} 20. axb5 {[%emt 0:00:07]} Nxd2 {[%emt 0:00:17]} 21. Qxd2 {[%emt 0:00:38]} Ne4 {[%emt 0:05:37]} 22. Nxe4 {[%emt 0:07:23]} Qxe4 {[%emt 0:02:15]} 23. bxc6 {[%emt 0:01:13]} bxc6 {[%emt 0:00:06]} 24. Qc3 {[%emt 0:01:38]} Rec8 {[%emt 0:01:25]} 25. Rc1 {[%emt 0:02:12]} Rxa1 {[%emt 0:00:15]} 26. Rxa1 {[%emt 0:01:48]} Qe7 {[%emt 0:00:51]} 27. Ra5 {[%emt 0:05:07]} Qd6 {[%emt 0:01:20]} 28. Qc5 {[%emt 0:00:36]} Qxc5 {[%emt 0:01:03]} 29. Rxc5 {[%emt 0:00:05]} Kf8 {[%emt 0:00:05]} 30. f3 {[%emt 0:03:23]} Ke7 {[%emt 0:02:01]} 31. Kf2 {[%emt 0:00:41]} Kd6 {[%emt 0:00:18]} 32. e4 {[%emt 0:01:20]} dxe4 {[%emt 0:00:14]} 33. fxe4 {[%emt 0:00:03]} f6 {[%emt 0:00:09]} 34. Kf3 {[%emt 0:01:33]} Ra8 {[%emt 0:00:25]} 35. Rc3 {[%emt 0:01:46]} Ra4 {[%emt 0:00:29]} 36. Rd3 {[%emt 0:03:57]} Ra5 {[%emt 0:01:28]} 37. Kf4 {[%emt 0:00:42]} Ke6 {[%emt 0:01:18]} 38. Rc3 {[%emt 0:00:46]} Kd6 {[%emt 0:00:14]} 39. g3 {[%emt 0:01:04]} h5 {[%emt 0:00:31]} 40. Rb3 {[%emt 0:00:00]} g5+ {[%emt 0:00:00]} 41. Kf3 {[%emt 0:08:10]} Ra4 {[%emt 0:00:58]} 42. Rd3 {[%emt 0:09:36]} 1/2-1/2

[Event "Polish Youth G18 Championship 2023"]
[Site "Jastrzebia Gora"]
[Date "2023.03.13"]
[Round "3.13"]
[White "Bialek, Alicja"]
[Black "Bartoszek, Julia"]
[Result "1/2-1/2"]
[ECO "B50"]
[WhiteElo "1576"]
[BlackElo "1344"]
[Annotator "NA RC COMBH"]
[PlyCount "62"]
[EventDate "2023.03.11"]
[EventType "swiss"]
[EventCountry "POL"]
[SourceTitle "playchess.com"]
[Source "ChessBase"]
[SourceQuality "1"]
[TimeControl "40/5400+30:1800+30"]

1. e4 {[%emt 0:00:03]} c5 {[%emt 0:00:09]} 2. Nf3 {[%emt 0:00:05]} d6 {[%emt 0:00:08]} 3. c3 {[%emt 0:00:04]} Nf6 {[%emt 0:00:16]} 4. Be2 {[%emt 0:00:04]} e6 {[%emt 0:00:25]} 5. e5 {[%emt 0:16:10]} dxe5 {[%emt 0:01:16]} 6. Nxe5 {[%emt 0:00:40]} Qc7 {[%emt 0:02:35]} 7. d4 {[%emt 0:01:02]} Bd6 {[%emt 0:10:38]} 8. Bb5+ {[%emt 0:10:43]} Nbd7 {[%emt 0:04:24]} 9. Nxd7 {[%emt 0:01:16]} Bxd7 {[%emt 0:03:04]} 10. Bxd7+ {[%emt 0:00:14]} Qxd7 {[%emt 0:01:54]} 11. dxc5 {[%emt 0:02:04]} Bxc5 {[%emt 0:00:57]} 12. Qe2 {[%emt 0:00:17]} O-O {[%emt 0:02:07]} 13. O-O {[%emt 0:03:04]} Rfd8 {[%emt 0:03:07]} 14. Bg5 {[%emt 0:00:40]} Be7 {[%emt 0:00:45]} 15. c4 {[%emt 0:00:32]} h6 {[%emt 0:03:17]} 16. Be3 {[%emt 0:00:34]} b6 {[%emt 0:03:36]} 17. Nc3 {[%emt 0:02:30]} Rac8 {[%emt 0:02:08]} 18. Nb5 {[%emt 0:05:34]} Qb7 {[%emt 0:04:52]} 19. Rac1 {[%emt 0:04:33]} a6 {[%emt 0:03:36]} 20. Nc3 {[%emt 0:01:48]} Bc5 {[%emt 0:02:49]} 21. Na4 {[%emt 0:02:22]} Bxe3 {[%emt 0:01:43]} 22. Qxe3 {[%emt 0:00:13]} b5 {[%emt 0:01:21]} 23. Nb6 {[%emt 0:01:25]} Ng4 {[%emt 0:03:39]} 24. Qf3 {[%emt 0:07:41]} Qxb6 {[%emt 0:00:26]} 25. Qxg4 {[%emt 0:00:09]} bxc4 {[%emt 0:00:57]} 26. Rxc4 {[%emt 0:00:11]} Qxb2 {[%emt 0:01:30]} 27. Rxc8 {[%emt 0:03:11]} Rxc8 {[%emt 0:00:09]} 28. Qa4 {[%emt 0:00:12]} Qb5 {[%emt 0:01:41]} 29. Qe4 {[%emt 0:05:00]} Qc6 {[%emt 0:03:25]} 30. Qd3 {[%emt 0:02:27]} Qa4 {[%emt 0:01:38]} 31. a3 {[%emt 0:04:54]} Qa5 1/2-1/2

[Event "Polish Youth G18 Championship 2023"]
[Site "Jastrzebia Gora"]
[Date "2023.03.13"]
[Round "3.14"]
[White "Gaczol, Julia"]
[Black "Krzyzosiak, Anna"]
[Result "1-0"]
[ECO "B90"]
[WhiteElo "1419"]
[BlackElo "1503"]
[Annotator "NA RC COMBH"]
[PlyCount "63"]
[EventDate "2023.03.11"]
[EventType "swiss"]
[EventCountry "POL"]
[SourceTitle "playchess.com"]
[Source "ChessBase"]
[SourceQuality "1"]
[TimeControl "40/5400+30:1800+30"]

1. e4 {[%emt 0:00:01]} c5 {[%emt 0:00:09]} 2. Nf3 {[%emt 0:00:38]} d6 {[%emt 0:00:08]} 3. d4 {[%emt 0:00:34]} cxd4 {[%emt 0:00:09]} 4. Nxd4 {[%emt 0:00:05]} Nf6 {[%emt 0:00:09]} 5. Nc3 {[%emt 0:00:06]} a6 {[%emt 0:00:06]} 6. Nb3 {[%emt 0:00:09]} e5 {[%emt 0:01:53]} 7. Bg5 {[%emt 0:00:09]} Be7 {[%emt 0:01:27]} 8. Bxf6 {[%emt 0:01:00]} Bxf6 {[%emt 0:00:23]} 9. Qd3 {[%emt 0:00:28]} Be6 {[%emt 0:10:47]} 10. O-O-O {[%emt 0:00:37]} Be7 {[%emt 0:05:03]} 11. Nd5 {[%emt 0:03:15]} Bxd5 {[%emt 0:02:15]} 12. Qxd5 {[%emt 0:00:53]} Nc6 {[%emt 0:05:27]} 13. Kb1 {[%emt 0:03:14]} Qc7 {[%emt 0:05:36]} 14. g3 {[%emt 0:02:53]} O-O {[%emt 0:06:25]} 15. f4 {[%emt 0:02:04]} a5 {[%emt 0:08:13]} 16. a4 {[%emt 0:12:37]} Nb4 {[%emt 0:13:57]} 17. Qc4 {[%emt 0:04:38]} Qb6 {[%emt 0:06:27]} 18. c3 {[%emt 0:15:38]} Rfc8 {[%emt 0:05:09]} 19. Qb5 {[%emt 0:02:02]} Qe3 {[%emt 0:09:40]} 20. Qe2 {[%emt 0:03:15]} Qxe2 {[%emt 0:02:10]} 21. Bxe2 {[%emt 0:00:10]} Nc6 {[%emt 0:01:08]} 22. Rd5 {[%emt 0:02:03]} exf4 {[%emt 0:01:50]} 23. gxf4 {[%emt 0:00:07]} b6 {[%emt 0:02:27]} 24. Rb5 {[%emt 0:07:21]} Rab8 {[%emt 0:01:57]} 25. Nd2 {[%emt 0:06:25]} Bh4 {[%emt 0:08:50]} 26. Nc4 {[%emt 0:02:08]} Rd8 {[%emt 0:00:49]} 27. Rxb6 {[%emt 0:01:12]} Rxb6 {[%emt 0:00:47]} 28. Nxb6 {[%emt 0:00:08]} Bf2 {[%emt 0:00:24]} 29. Nd5 {[%emt 0:00:53]} Re8 {[%emt 0:00:35]} 30. Bb5 {[%emt 0:03:35]} Rc8 {[%emt 0:00:37]} 31. Bxc6 {[%emt 0:00:44]} Kf8 {[%emt 0:00:26]} 32. Bb5 {[%emt 0:00:41]} 1-0